fUST/lending_fUST_20240118
["ID","MTS","AMOUNT","RATE_DAILY","PERIOD"]
[312038936,1705569039330,-416.75224438,0.00025885,4]
[312038939,1705569039341,-408.87722404,0.00025885,4]
[312038940,1705569039350,-500.0,0.00025885,4]
[312038941,1705569039359,-500.0,0.00025885,4]
[312038943,1705569039369,-500.0,0.00025885,4]
[312038946,1705569039379,-500.0,0.00025885,4]
[312038947,1705569039388,-500.0,0.00025885,4]
[312038948,1705569039398,-500.0,0.00025885,4]
[312038949,1705569039407,-500.0,0.00025885,4]
[312038950,1705569039417,-500.0,0.00025885,4]
[312038951,1705569039426,-500.0,0.00025885,4]
[312038952,1705569039436,-500.0,0.00025885,4]
[312038953,1705569039445,-500.0,0.00025885,4]
[312038954,1705569039454,-457.09677398,0.00025885,4]
[312038955,1705569039463,-500.0,0.00025885,4]
[312038956,1705569039474,-500.0,0.00025885,4]
[312038957,1705569039484,-500.0,0.00025885,4]
[312038958,1705569039493,-500.0,0.00025885,2]
[312038959,1705569039503,-500.0,0.00025885,2]
[312038960,1705569039512,-500.0,0.00025885,2]
[312038961,1705569039521,-500.0,0.00025885,2]
[312038962,1705569039530,-500.0,0.00025885,2]
[312038963,1705569039540,-500.0,0.00025885,2]
[312038964,1705569039549,-635.93414703,0.00025885,2]
[312038965,1705569039560,-500.0,0.00025885,2]
[312038966,1705569039569,-500.0,0.00025885,2]
[312038967,1705569039580,-500.0,0.00025885,2]
[312038968,1705569039589,-363.29086082,0.00025885,2]
[312038969,1705569039598,-500.0,0.00025885,2]
[312038970,1705569039609,-500.0,0.00025885,2]
[312038971,1705569039618,-649.99681062,0.00025885,2]
[312038972,1705569039629,-500.0,0.00025885,2]
[312038973,1705569039639,-500.0,0.00025885,2]
[312038974,1705569039725,-532.97416654,0.00025885,2]
[312038975,1705569039735,-500.0,0.00025885,2]
[312038976,1705569039744,-500.0,0.00025885,2]
[312038977,1705569039753,-500.0,0.00025885,2]
[312038978,1705569039763,-500.0,0.00025885,2]
[312038979,1705569039772,-500.0,0.00025885,2]
[312038980,1705569039781,-500.0,0.00025885,2]
[312038981,1705569039790,-500.0,0.00025885,2]
[312038982,1705569039799,-500.0,0.00025885,2]
[312038983,1705569039808,-500.0,0.00025885,2]
[312038984,1705569039817,-189.19751226,0.00025885,2]
[312038985,1705569039827,-500.0,0.00025885,2]
[312038986,1705569039835,-500.0,0.00025885,2]
[312038987,1705569039845,-500.0,0.00025885,2]
[312038988,1705569039854,-500.0,0.00025885,2]
[312038989,1705569039863,-500.0,0.00025885,2]
[312038990,1705569039872,-500.0,0.00025885,2]
[312038991,1705569039881,-500.0,0.00025885,2]
[312038992,1705569039891,-237.94041458,0.00025885,2]
[312038993,1705569039901,-500.0,0.00025885,2]
[312038994,1705569039910,-500.0,0.00025885,2]
[312038995,1705569039920,-500.0,0.00025885,2]
[312038996,1705569039929,-400.32840388,0.00025885,2]
[312038997,1705569039938,-500.0,0.00025885,2]
[312038998,1705569039947,-500.0,0.00025885,2]
[312038999,1705569039957,-500.0,0.00025885,2]
[312039000,1705569039966,-500.0,0.00025885,2]
[312039001,1705569039977,-500.0,0.00025885,2]
[312039002,1705569039987,-500.0,0.00025885,2]
[312039003,1705569039996,-500.0,0.00025885,2]
[312039004,1705569040006,-500.0,0.00025885,2]
[312039005,1705569040015,-500.0,0.00025885,2]
[312039008,1705569040024,-500.0,0.00025885,2]
[312039011,1705569040033,-500.0,0.00025885,2]
[312039020,1705569040250,-500.0,0.00025885,2]
[312039021,1705569040259,-500.0,0.00025885,2]
[312039022,1705569040269,-500.0,0.00025885,2]
[312039023,1705569040281,-500.0,0.00025885,2]
[312039024,1705569040290,-500.0,0.00025885,2]
[312039025,1705569040300,-500.0,0.00025885,2]
[312039026,1705569040310,-500.0,0.00025885,2]
[312039027,1705569040321,-500.0,0.00025885,2]
[312039028,1705569040332,-500.0,0.00025885,2]
[312039029,1705569040342,-500.0,0.00025885,2]
[312039030,1705569040352,-500.0,0.00025885,2]
[312039031,1705569040361,-500.0,0.00025885,2]
[312039032,1705569040370,-500.0,0.00025885,2]
[312039033,1705569040380,-500.0,0.00025885,2]
[312039034,1705569040389,-342.87850745,0.00025886,2]
[312039035,1705569040398,-620.26741538,0.00025886,2]
[312039036,1705569040408,-306.07051674,0.00025886,2]
[312039037,1705569040417,-1109.01672269,0.00025886,2]
[312039038,1705569040426,-154.9690062,0.00025886,2]
[312039039,1705569040435,-300.0,0.00025886,2]
[312039040,1705569040445,-154.9690062,0.00025886,2]
[312039041,1705569040455,-154.9690062,0.00025886,2]
[312039042,1705569040465,-2082.71954556,0.00025886,2]
[312039043,1705569040475,-154.9690062,0.00025886,2]
[312039044,1705569040485,-10293.9434922,0.00025886,2]
[312039045,1705569040495,-1275.30976545,0.00025886,2]
[312039046,1705569040505,-283990.84773363,0.00025886,7]
[312039047,1705569040514,-4718.82684458,0.00025895,2]
[312039048,1705569040523,-669.3137399,0.000259,2]
[312039049,1705569040532,-166.666666,0.00026282,2]
[312039050,1705569040541,-167.395344,0.00026609,2]
[312039051,1705569040551,-151.0,0.00026894,2]
[312039052,1705569040560,-166.666666,0.00026998,2]
[312039053,1705569040569,-166.666666,0.00027715,2]
[312039054,1705569040579,-151.0,0.00027891,2]
[312039055,1705569040589,-2515.81479517,0.00027992,3]
[312039056,1705569040598,-16914.0885373,0.00027992,3]
[312039057,1705569040608,-659.353527,0.00027992,2]
[312039058,1705569040617,-659.353527,0.00027992,2]
[312039059,1705569040626,-227.79183818,0.00027998,2]
[312039060,1705569040635,-151.0,0.00027999,2]
[312039061,1705569040644,-151.0,0.00027999,2]
[312039062,1705569040653,-151.0,0.00027999,2]
[312039064,1705569040662,-151.0,0.00027999,2]
[312039066,1705569040671,-245.72507348,0.00027999,2]
[312039068,1705569040680,-659.353527,0.00027999,2]
[312039070,1705569040689,-659.353527,0.00027999,2]
[312039072,1705569040698,-659.353527,0.00027999,2]
[312039074,1705569040707,-659.353527,0.00027999,2]
[312039078,1705569040716,-659.353527,0.00027999,2]
[312039081,1705569040726,-659.353527,0.00027999,2]
[312039085,1705569040734,-1611.96814653,0.00027999,2]
[312039087,1705569040744,-32124.01404513,0.00028,8]
[312039097,1705569040799,-23322.97610078,0.00028,8]
[312039099,1705569040809,-3318.9973618,0.00028,2]
[312039101,1705569040818,-338.27488871,0.00028,2]
[312039102,1705569040827,-351.14579978,0.00028,2]
[312039103,1705569040836,-4115.22953383,0.00028,2]
[312039104,1705569040845,-834.7768658,0.00028,2]
[312039112,1705569042276,-151.0,0.00027992,2]
[312039113,1705569042286,-151.0,0.00027999,2]
[312039114,1705569042295,-278.349771,0.00027999,2]
[312039115,1705569042304,-1086.92389391,0.00028,2]
[312039116,1705569042314,-155.35099403,0.00028,2]
[312039117,1705569042323,-151.0,0.00028,2]
[312039118,1705569042333,-151.0,0.00028,2]
[312039119,1705569042344,-659.353527,0.00028,2]
[312039120,1705569042353,-659.353527,0.00028,2]
[312039121,1705569042363,-659.353527,0.00028,2]
[312039122,1705569042373,-659.353527,0.00028,2]
[312039123,1705569042382,-305.46439516,0.00028272,2]
[312039124,1705569042391,-166.666666,0.00028432,2]
[312039125,1705569042401,-200.0,0.00028471,15]
[312039126,1705569042411,-3882.37933715,0.00028749,2]
[312039127,1705569042421,-151.0,0.00028888,2]
[312039128,1705569042430,-154.95351395,0.00029,2]
[312039129,1705569042439,-2455.73923901,0.00029,2]
[312039130,1705569042448,-1000.0,0.00029,29]
[312039131,1705569042457,-166.666666,0.00029148,2]
[312039132,1705569042467,-155.0,0.000293,2]
[312039133,1705569042477,-151.0,0.00029862,2]
[312039134,1705569042487,-151.0,0.00029862,2]
[312039135,1705569042496,-659.353527,0.00029862,2]
[312039136,1705569042505,-659.353527,0.00029862,2]
[312039137,1705569042514,-5000.0,0.00029863,2]
[312039138,1705569042523,-151.0,0.00029863,2]
[312039139,1705569042532,-166.666666,0.00029865,2]
[312039140,1705569042542,-151.0,0.00029885,2]
[312039141,1705569042551,-682.23213824,0.0003,3]
[312039142,1705569042560,-201.08171049,0.0003,4]
[312039143,1705569042569,-687.89788967,0.0003,4]
[312039144,1705569042578,-154.95351395,0.0003,4]
[312039145,1705569042587,-464.23133021,0.0003,2]
[312039146,1705569042597,-640.81580837,0.0003,4]
[312039147,1705569042606,-1873.37998435,0.0003,4]
[312039148,1705569042676,-618.22758669,0.0003,4]
[312039149,1705569042686,-1259.13870058,0.0003,2]
[312039150,1705569042699,-11359.38556525,0.0003,2]
[312039151,1705569042712,-4878.73476313,0.0003,2]
[312039152,1705569042726,-6878.52104769,0.0003,2]
[312039153,1705569042739,-4800.91033566,0.0003,2]
[312039154,1705569042748,-151.0,0.0003,2]
[312039155,1705569042757,-246.0,0.0003,2]
[312039156,1705569042766,-151.0,0.0003,2]
[312039157,1705569042775,-151.0,0.0003,2]
[312039158,1705569042785,-366.51284084,0.0003,30]
[312039159,1705569042798,-633.48715916,0.0003,30]
[312039160,1705569042807,-659.353527,0.0003,2]
[312039161,1705569042817,-659.353527,0.0003,2]
[312039162,1705569042826,-659.353527,0.0003,2]
[312039163,1705569042836,-659.353527,0.0003,2]
[312039164,1705569042845,-151.0,0.00030082,2]
[312039165,1705569042855,-151.0,0.00030082,2]
[312039166,1705569042864,-659.353527,0.00030082,2]
[312039167,1705569042873,-659.353532,0.00030082,2]
[312039168,1705569042882,-8037.38221558,0.00030082,2]
[312039169,1705569042891,-162.763631,0.00030137,2]
[312039170,1705569042901,-423.01931939,0.00030275,5]
[312039171,1705569042909,-66947.9632038,0.000303,10]
[312039172,1705569042919,-151.0,0.000303,2]
[312039173,1705569042928,-167.58269975,0.00030372,2]
[312039174,1705569042937,-180.1763723,0.00030372,4]
[312039175,1705569042946,-155.0,0.0003067,2]
[312039176,1705569042955,-172.0,0.0003067,30]
[312039177,1705569042965,-172.0,0.0003068,30]
[312039178,1705569042974,-172.0,0.0003069,30]
[312039179,1705569042983,-150.0,0.00030843,2]
[312039180,1705569042992,-151.0,0.00030883,2]
[312039181,1705569043001,-191.04148,0.00030899,2]
[312039182,1705569043010,-669.3137399,0.000309,2]
[312039183,1705569043019,-4536.63412681,0.00031,5]
[312039184,1705569043034,-7707.24252348,0.00031,5]
[312039185,1705569043044,-2905.60138911,0.00031,4]
[312039186,1705569043055,-10990.39266955,0.00031,2]
[312039188,1705569043065,-1000.0,0.00031,31]
[312039190,1705569043074,-150.5,0.00031026,30]
[312039192,1705569043083,-150.5,0.00031036,30]
[312039194,1705569043092,-150.5,0.00031046,30]
[312039196,1705569043101,-5000.0,0.00031056,2]
[312039198,1705569043110,-3126.02728391,0.00031148,4]
[312039200,1705569043120,-466.94620861,0.00031148,4]
[312039202,1705569043129,-155.2340082,0.00031148,4]
[312039204,1705569043139,-246.69766217,0.00031149,4]
[312039206,1705569043148,-20026.71717432,0.00031286,2]
[312039207,1705569043157,-162.763631,0.00031288,2]
[312039208,1705569043166,-280.0,0.00031318,15]
[312039209,1705569043176,-2711.34625531,0.00031677,120]
[312039211,1705569043186,-3000.0,0.000317,2]
[312039213,1705569043195,-3000.0,0.000317,2]
[312039215,1705569043205,-2000.0,0.000317,2]
[312039217,1705569043215,-2438.87042123,0.000317,2]
[312039219,1705569043225,-150.0,0.0003176,2]
[312039221,1705569043234,-12907.09282827,0.00031767,5]
[312039223,1705569043243,-160.67396118,0.00031868,4]
[312039225,1705569043252,-2043.41617332,0.00031868,4]
[312039227,1705569043262,-155.01548296,0.00031868,4]
[312039229,1705569043271,-1586.07706038,0.00031868,2]
[312039231,1705569043280,-479.80939989,0.00031868,4]
[312039233,1705569043289,-2031.79600429,0.00031868,4]
[312039235,1705569043299,-266.58072462,0.00031868,4]
[312039237,1705569043308,-187.55268344,0.00031868,2]
[312039239,1705569043318,-2201.962493,0.00031868,4]
[312039241,1705569043327,-309.9690031,0.00031869,4]
[312039243,1705569043337,-154.81467579,0.00031869,7]
[312039245,1705569043346,-5000.0,0.0003187,2]
[312039247,1705569043355,-151.0,0.0003188,2]
[312039249,1705569043364,-379.58408484,0.000319,30]
[312039251,1705569043373,-2835.70015031,0.00031999,4]
[312039253,1705569043383,-40023.74549781,0.00031999,2]
[312039255,1705569043393,-166.88,0.00031999,2]
[312039257,1705569043402,-166.88,0.00031999,2]
[312039259,1705569043412,-166.88,0.00031999,2]
[312039261,1705569043421,-166.88,0.00031999,2]
[312039263,1705569043431,-166.88,0.00031999,2]
[312039265,1705569043441,-166.88,0.00031999,2]
[312039267,1705569043450,-752.5766124,0.00032,4]
[312039269,1705569043459,-180.27983491,0.00032,4]
[312039271,1705569043468,-156.69665893,0.00032,4]
[312039273,1705569043477,-1000.0,0.00032,32]
[312039275,1705569043486,-1008.0,0.00032,2]
[312039277,1705569043495,-363.84472521,0.00032,3]
[312039279,1705569043504,-12335.99250405,0.00032,14]
[312039282,1705569043518,-14964.00749595,0.00032,14]
[312039284,1705569043527,-486.36237481,0.00032,4]
[312039286,1705569043536,-47192.92993084,0.00032,15]
[312039312,1705569043774,-6082.24430589,0.0003029,3]
[312039609,1705569076593,4895.17,0.00029,30]
[312039647,1705570132115,-526.93309094,0.00024982,2]
[312039648,1705570132136,-4010.78536694,0.00025073,2]
[312039649,1705570132156,-17886.28154212,0.00025074,2]
[312039650,1705570150113,-1377.98576047,0.00025073,2]
[312039651,1705570150137,-3785.56555368,0.00025074,2]
[312039652,1705570150158,-184.41586934,0.00025093,2]
[312039653,1705570150186,-1694.70771461,0.00025093,2]
[312039654,1705570150208,-2107.37177409,0.00025093,2]
[312039655,1705570150229,-2242.39866587,0.00025107,5]
[312039656,1705570150251,-166.666666,0.00025325,2]
[312039657,1705570150272,-161.818479,0.00025562,2]
[312039658,1705570150294,-250.0,0.00025678,2]
[312039659,1705570150315,-2021.11686396,0.00025884,2]
[312039660,1705570150341,-300.0,0.00025886,2]
[312039661,1705570150362,-156.93310058,0.00025886,2]
[312039662,1705570150383,-892.14209609,0.00025886,2]
[312039663,1705570152104,-1189.04849589,0.00025886,2]
[312039664,1705570152126,-155.49518495,0.00025886,2]
[312039665,1705570152147,-418.63817645,0.00025886,2]
[312039666,1705570152170,-166.666666,0.00026015,2]
[312039667,1705570152190,-286.62025392,0.000264,2]
[312039699,1705570231803,-725.68741447,0.0002639,3]
[312039742,1705570238598,-4521.84258553,0.0002639,3]
[312039744,1705570238608,-5094.45,0.0002639,3]
[312039746,1705570238617,-4245.38,0.0002639,3]
[312039748,1705570238625,-3537.81,0.0002639,3]
[312039750,1705570238634,-500.0,0.00026399,4]
[312039752,1705570238643,-500.0,0.00026399,4]
[312039754,1705570238652,-500.0,0.00026399,4]
[312039756,1705570238661,-430.80459298,0.00026399,4]
[312039758,1705570238670,-500.0,0.00026399,4]
[312039760,1705570238679,-500.0,0.00026399,4]
[312039762,1705570238688,-500.0,0.00026399,4]
[312039764,1705570238697,-500.0,0.00026399,4]
[312039766,1705570238706,-358.92510346,0.00026399,4]
[312039769,1705570238715,-500.0,0.00026399,4]
[312039771,1705570238724,-485.32776735,0.00026399,4]
[312039773,1705570238733,-500.0,0.00026399,4]
[312039775,1705570238742,-500.0,0.00026399,4]
[312039777,1705570238751,-500.0,0.00026399,4]
[312039779,1705570238760,-500.0,0.00026399,4]
[312039781,1705570238769,-500.0,0.00026399,4]
[312039783,1705570238778,-500.0,0.00026399,4]
[312039785,1705570238787,-607.75900657,0.00026399,4]
[312039787,1705570238796,-500.0,0.00026399,4]
[312039789,1705570238805,-500.0,0.00026399,4]
[312039791,1705570238813,-500.0,0.00026399,4]
[312039793,1705570238823,-500.0,0.00026399,4]
[312039795,1705570238831,-500.0,0.00026399,4]
[312039797,1705570238841,-500.0,0.00026399,4]
[312039799,1705570238850,-500.0,0.00026399,4]
[312039801,1705570238859,-500.0,0.00026399,4]
[312039803,1705570238868,-500.0,0.00026399,4]
[312039805,1705570238878,-500.0,0.00026399,4]
[312039807,1705570238886,-500.0,0.00026399,4]
[312039809,1705570238895,-500.0,0.00026399,4]
[312039810,1705570238905,-500.0,0.00026399,4]
[312039812,1705570238914,-500.0,0.00026399,4]
[312039814,1705570238923,-516.28049715,0.00026399,2]
[312039816,1705570238932,-500.0,0.00026399,2]
[312039818,1705570238941,-500.0,0.00026399,2]
[312039820,1705570238951,-500.0,0.00026399,2]
[312039822,1705570238960,-500.0,0.00026399,2]
[312039824,1705570238969,-500.0,0.00026399,2]
[312039826,1705570238978,-500.0,0.00026399,2]
[312039828,1705570238987,-500.0,0.00026399,2]
[312039830,1705570238996,-500.0,0.00026399,2]
[312039841,1705570239082,-500.0,0.00026399,2]
[312039843,1705570239093,-220.46710459,0.00026399,2]
[312039845,1705570239102,-500.0,0.00026399,2]
[312039847,1705570239111,-500.0,0.00026399,2]
[312039849,1705570239121,-500.0,0.00026399,2]
[312039851,1705570239131,-500.0,0.00026399,2]
[312039853,1705570239140,-500.0,0.00026399,2]
[312039855,1705570239149,-500.0,0.00026399,2]
[312039857,1705570239159,-500.0,0.00026399,2]
[312039859,1705570239168,-500.0,0.00026399,2]
[312039861,1705570239177,-373.31312012,0.00026399,4]
[312039863,1705570239186,-500.0,0.00026399,2]
[312039865,1705570239195,-200.0,0.00026399,2]
[312039866,1705570239204,-500.0,0.00026399,2]
[312039868,1705570239213,-500.0,0.00026399,4]
[312039870,1705570239222,-500.0,0.00026399,2]
[312039872,1705570239231,-500.0,0.00026399,2]
[312039874,1705570239240,-500.0,0.00026399,2]
[312039877,1705570239249,-500.0,0.00026399,2]
[312039880,1705570239258,-500.0,0.00026399,2]
[312039882,1705570239267,-500.0,0.00026399,2]
[312039884,1705570239276,-500.0,0.00026399,2]
[312039886,1705570239285,-500.0,0.00026399,2]
[312039888,1705570239294,-500.0,0.00026399,2]
[312039890,1705570239303,-500.0,0.00026399,2]
[312039892,1705570239312,-500.0,0.00026399,2]
[312039894,1705570239321,-500.0,0.00026399,2]
[312039896,1705570239330,-500.0,0.00026399,2]
[312039898,1705570239339,-500.0,0.00026399,2]
[312039900,1705570239348,-500.0,0.00026399,2]
[312039902,1705570239356,-500.0,0.00026399,2]
[312039904,1705570239365,-500.0,0.00026399,2]
[312039906,1705570239374,-500.0,0.00026399,2]
[312039907,1705570239383,-500.0,0.00026399,2]
[312039909,1705570239392,-223.32708037,0.00026399,2]
[312039911,1705570239402,-349.42830582,0.000264,2]
[312039913,1705570239411,-283990.84773363,0.000264,7]
[312039915,1705570239421,-620.26741538,0.000264,2]
[312039917,1705570239431,-154.9690062,0.000264,2]
[312039919,1705570239443,-10293.9434922,0.000264,2]
[312039921,1705570239452,-154.9690062,0.000264,2]
[312039923,1705570239461,-166.666666,0.00026706,2]
[312039925,1705570239470,-166.666666,0.00027396,2]
[312039927,1705570239481,-155.0,0.00027397,2]
[312039929,1705570239490,-620.80242799,0.0002772,2]
[312039931,1705570239499,-227.79183818,0.0002779,2]
[312039933,1705570239508,-1825.54384392,0.0002779,2]
[312039935,1705570239518,-260.79058258,0.00027799,2]
[312039937,1705570239527,-587.55478974,0.00027799,2]
[312039939,1705570239537,-1162.45519255,0.00027799,2]
[312039941,1705570239546,-687.23089543,0.00027799,2]
[312039943,1705570239555,-613.17217597,0.00027799,2]
[312039945,1705570239564,-1611.96814653,0.000278,2]
[312039947,1705570239573,-57029.51633134,0.00027801,4]
[312039949,1705570239582,-169.2776447,0.00027892,2]
[312039951,1705570239591,-5194.85,0.00027969,3]
[312039953,1705570239601,-50000.0,0.00027992,4]
[312039955,1705570239610,-23438.46315835,0.00027992,4]
[312039957,1705570239619,-13789.06475581,0.00027992,3]
[312039959,1705570239628,-16419.40756926,0.00027992,3]
[312039960,1705570239637,-154.9690062,0.00028,10]
[312039962,1705570239646,-290.00241025,0.00028,2]
[312039964,1705570239656,-166.666666,0.00028087,2]
[312039966,1705570239665,-155.0,0.00028767,2]
[312039968,1705570239674,-166.666666,0.00028777,2]
[312039970,1705570239684,-151.0,0.00028804,2]
[312039972,1705570239693,-176.26510387,0.00028998,3]
[312039974,1705570239702,-276.96020466,0.00029,2]
[312039976,1705570239711,-2455.73923901,0.00029,2]
[312039978,1705570239721,-1275.30976545,0.00029,2]
[312039980,1705570239730,-1109.01672269,0.00029,2]
[312039982,1705570239739,-1824.64474457,0.00029,2]
[312039984,1705570239748,-342.87850745,0.00029,2]
[312039986,1705570239757,-305.46439516,0.00029,2]
[312039988,1705570239766,-3318.9973618,0.00029,2]
[312039990,1705570239775,-261.3528024,0.00029,2]
[312039992,1705570239784,-153.083675,0.00029,2]
[312039994,1705570239793,-151.0,0.00029,2]
[312039996,1705570239802,-1500.0,0.00029,2]
[312039998,1705570239811,-200.0,0.00029028,15]
[312040000,1705570239820,-620.0401214,0.00029106,2]
[312040002,1705570239830,-153.0,0.00029315,2]
[312040004,1705570239839,-198.9993253,0.00029315,2]
[312040006,1705570239847,-200.4984224,0.00029315,2]
[312040008,1705570239857,-213.00013457,0.000295,30]
[312040011,1705570239867,-153.0,0.00029589,2]
[312040014,1705570239876,-151.0,0.00029807,2]
[312040016,1705570239885,-2235.63923643,0.00029899,2]
[312040019,1705570239894,-154.9690062,0.0003,2]
[312040022,1705570239903,-195.1690538,0.0003,4]
[312040023,1705570239911,-261.23139857,0.0003,2]
[312040026,1705570239921,-283.01176432,0.0003,3]
[312040029,1705570239930,-640.81580837,0.0003,4]
[312040032,1705570239939,-682.23213824,0.0003,3]
[312040034,1705570239948,-233.58854863,0.0003,4]
[312040037,1705570239957,-687.89788967,0.0003,4]
[312040040,1705570239966,-201.08171049,0.0003,4]
[312040043,1705570239975,-243.91959085,0.0003,4]
[312040046,1705570239985,-154.9690062,0.0003,2]
[312040049,1705570239993,-231.70259256,0.0003,4]
[312040051,1705570240002,-1500.0,0.0003,2]
[312040053,1705570240011,-196.0,0.0003,2]
[312040055,1705570240021,-1323.132852,0.00030017,2]
[312040057,1705570240030,-446.95360242,0.00030017,2]
[312040059,1705570240039,-10876.65746894,0.00030017,2]
[312040061,1705570240047,-500.0,0.00030136,2]
[312040063,1705570240056,-453.828346,0.00030137,2]
[312040065,1705570240065,-155.0,0.00030137,2]
[312040067,1705570240074,-500.0,0.00030273,2]
[312040069,1705570240083,-497.89805688,0.00030398,5]
[312040071,1705570240092,-167.13604108,0.0003041,2]
[312040073,1705570240101,-620.00200607,0.00030561,2]
[312040074,1705570240110,-242.743,0.00030564,2]
[312040076,1705570240119,-372.0,0.0003067,30]
[312040078,1705570240128,-372.0,0.0003068,30]
[312040080,1705570240137,-372.0,0.0003069,30]
[312040082,1705570240146,-151.0,0.00030811,2]
[312040084,1705570240155,-150.0,0.00030898,2]
[312040086,1705570240164,-453.828346,0.00030959,2]
[312040088,1705570240173,-2195.57,0.00030999,2]
[312040090,1705570240181,-2195.57,0.00030999,2]
[312040092,1705570240190,-153.52997654,0.00030999,2]
[312040094,1705570240199,-2195.58,0.00030999,2]
[312040096,1705570240208,-2195.57,0.00030999,2]
[312040098,1705570240217,-2195.57,0.00030999,2]
[312040100,1705570240226,-2195.57,0.00030999,2]
[312040102,1705570240234,-2195.57,0.00030999,2]
[312040104,1705570240243,-2195.57,0.00030999,2]
[312040106,1705570240252,-9218.72615909,0.00031,5]
[312040108,1705570240261,-97008.73082187,0.00031,4]
[312040110,1705570240270,-152.118286,0.00031,2]
[312040111,1705570240279,-151.0,0.00031,2]
[312040113,1705570240289,-249.0,0.00031,2]
[312040115,1705570240297,-1500.0,0.00031,2]
[312040117,1705570240307,-591.150336,0.00031,2]
[312040119,1705570240316,-591.150336,0.00031,2]
[312040121,1705570240325,-1323.132852,0.00031,2]
[312040123,1705570240333,-2000.0,0.000311,3]
[312040125,1705570240342,-200.41,0.000313,4]
[312040127,1705570240352,-155.0,0.00031507,2]
[312040129,1705570240361,-453.828346,0.00031781,2]
[312040131,1705570240370,-151.0,0.00031815,2]
[312040133,1705570240380,-280.0,0.00031931,15]
[312040135,1705570240389,-712.59204139,0.00031999,4]
[312040137,1705570240399,-81949.4181381,0.00032,15]
[312040139,1705570240408,-650.89335401,0.00032,4]
[312040141,1705570240418,-2000.0,0.00032,8]
[312040143,1705570240428,-2000.0,0.00032,8]
[312040145,1705570240439,-150.0,0.00032,4]
[312040147,1705570240448,-151.0,0.00032,2]
[312040149,1705570240458,-1000.0,0.00032,32]
[312040151,1705570240468,-150.0,0.00032,4]
[312040152,1705570240478,-502.016768,0.00032,3]
[312040154,1705570240487,-1500.0,0.00032,2]
[312040156,1705570240496,-200.0,0.00032,4]
[312040158,1705570240505,-245.009401,0.00032,5]
[312040160,1705570240516,-245.009401,0.00032,5]
[312040162,1705570240525,-591.150336,0.00032,2]
[312040164,1705570240535,-591.150336,0.00032,2]
[312040166,1705570240544,-1323.132852,0.00032,2]
[312040175,1705570240617,-2000.0,0.0003201,8]
[312040177,1705570240626,-2000.0,0.0003201,8]
[312040178,1705570240637,-2000.0,0.0003202,8]
[312040180,1705570240646,-2000.0,0.0003202,8]
[312040182,1705570240658,-2000.0,0.0003203,8]
[312040184,1705570240667,-2000.0,0.0003203,8]
[312040186,1705570240676,-2000.0,0.0003204,8]
[312040188,1705570240685,-2000.0,0.0003204,8]
[312040190,1705570240694,-2000.0,0.0003205,8]
[312040192,1705570240703,-2000.0,0.0003205,8]
[312040194,1705570240712,-2000.0,0.0003206,8]
[312040196,1705570240721,-2000.0,0.0003206,8]
[312040198,1705570240731,-2000.0,0.0003207,8]
[312040200,1705570240741,-2000.0,0.0003207,8]
[312040202,1705570240750,-2000.0,0.0003208,8]
[312040204,1705570240758,-2000.0,0.0003208,8]
[312040206,1705570240767,-620.0001003,0.00032089,2]
[312040208,1705570240776,-2000.0,0.0003209,8]
[312040210,1705570240785,-2000.0,0.0003209,8]